[Event "European-ch Seniors 2018"]
[Site "Drammen"]
[Date "2018.08.10"]
[Round "7"]
[White "Birkholz, Olga"]
[Black "Strutinskaia, Galina"]
[Result "1-0"]
[ECO "A05"]
[WhiteElo "2048"]
[BlackElo "2208"]
[Annotator "NA"]
[PlyCount "133"]
[EventDate "2018.08.04"]
[EventType "swiss"]
[EventCountry "NOR"]
[SourceTitle "playchess.com"]
[Source "ChessBase"]
[SourceQuality "1"]
[TimeControl "40/5400+30:1800+30"]

1. Nf3 {[%emt 0:00:00]} Nf6 {[%emt 0:02:25]} 2. g3 {[%emt 0:00:04]} b6 {[%emt 0:00:39]} 3. Bg2 {[%emt 0:00:08]} Bb7 {[%emt 0:00:19]} 4. d3 {[%emt 0:01:00]} e6 {[%emt 0:01:49]} 5. O-O {[%emt 0:01:31]} Be7 {[%emt 0:01:48]} 6. b3 {[%emt 0:00:15]} d6 {[%emt 0:03:53]} 7. Bb2 {[%emt 0:00:25]} O-O {[%emt 0:02:11]} 8. Nbd2 {[%emt 0:06:08]} a5 {[%emt 0:02:17]} 9. a4 {[%emt 0:02:04]} Na6 {[%emt 0:02:57]} 10. e4 {[%emt 0:01:11]} d5 {[%emt 0:07:48]} 11. e5 {[%emt 0:03:20]} Nd7 {[%emt 0:00:33]} 12. Re1 {[%emt 0:01:24]} Nb4 {[%emt 0:00:35]} 13. Nd4 {[%emt 0:05:08]} Rb8 {[%emt 0:02:53]} 14. Nf1 {[%emt 0:07:10]} Nc5 {[%emt 0:02:14]} 15. Ne3 {[%emt 0:05:18]} Qd7 {[%emt 0:01:15]} 16. f4 {[%emt 0:03:15]} Ba6 {[%emt 0:02:04]} 17. Bf1 {[%emt 0:01:13]} f6 {[%emt 0:00:59]} 18. exf6 {[%emt 0:03:37]} Bxf6 {[%emt 0:05:05]} 19. Ng4 {[%emt 0:01:07]} Rbe8 {[%emt 0:00:36]} 20. Nxf6+ {[%emt 0:00:50]} gxf6 {[%emt 0:00:33]} 21. Qg4+ {[%emt 0:04:58]} Qg7 {[%emt 0:02:53]} 22. Qxg7+ {[%emt 0:02:09]} Kxg7 {[%emt 0:00:06]} 23. Rad1 {[%emt 0:04:47]} Bc8 {[%emt 0:04:55]} 24. Rd2 {[%emt 0:01:39]} e5 {[%emt 0:06:23]} 25. fxe5 {[%emt 0:01:38]} Rxe5 {[%emt 0:00:51]} 26. Rxe5 {[%emt 0:00:40]} fxe5 {[%emt 0:00:05]} 27. Nb5 {[%emt 0:00:10]} d4 {[%emt 0:01:36]} 28. Nxc7 {[%emt 0:01:04]} Bd7 {[%emt 0:01:16]} 29. Ba3 {[%emt 0:07:46]} Rc8 {[%emt 0:01:28]} 30. Bxb4 {[%emt 0:00:18]} Rxc7 {[%emt 0:00:26]} 31. Ba3 {[%emt 0:02:07]} Bf5 {[%emt 0:02:21]} 32. Rf2 {[%emt 0:01:07]} Kg6 {[%emt 0:00:26]} 33. Bg2 {[%emt 0:08:04]} Kg5 {[%emt 0:04:00]} 34. Bc1+ {[%emt 0:02:39]} Kg6 {[%emt 0:00:07]} 35. Ba3 {[%emt 0:00:31]} Kg5 {[%emt 0:00:09]} 36. Re2 {[%emt 0:00:36]} Kf6 {[%emt 0:00:29]} 37. Bd5 {[%emt 0:00:49]} Bh3 {[%emt 0:02:24]} 38. Rf2+ {[%emt 0:02:50]} Kg5 {[%emt 0:01:00]} 39. Bf7 {[%emt 0:04:26]} Kh6 {[%emt 0:00:31]} 40. Bc4 {[%emt 0:00:00]} Kg5 {[%emt 0:00:00]} 41. Bc1+ {[%emt 0:13:07]} Kg6 {[%emt 0:01:06]} 42. Rf8 {[%emt 0:02:19]} Be6 {[%emt 0:00:46]} 43. Bxe6 {[%emt 0:04:40]} Nxe6 {[%emt 0:00:07]} 44. Rf2 {[%emt 0:00:01]} Nc5 {[%emt 0:00:37]} 45. Ba3 {[%emt 0:00:37]} h5 {[%emt 0:01:29]} 46. Kg2 {[%emt 0:01:04]} Nb7 {[%emt 0:00:09]} 47. Kh3 {[%emt 0:00:35]} Kg5 {[%emt 0:02:53]} 48. Kg2 {[%emt 0:01:56]} Nc5 {[%emt 0:00:09]} 49. h4+ {[%emt 0:01:31]} Kg6 {[%emt 0:00:05]} 50. Bxc5 {[%emt 0:01:35]} Rxc5 {[%emt 0:00:15]} 51. Kh3 {[%emt 0:01:09]} Rc3 {[%emt 0:00:46]} 52. Re2 {[%emt 0:02:04]} Kf5 {[%emt 0:00:15]} 53. Kg2 {[%emt 0:00:34]} Rc5 {[%emt 0:00:26]} 54. Kf3 {[%emt 0:05:22]} b5 {[%emt 0:01:19]} 55. axb5 {[%emt 0:00:30]} Rxb5 {[%emt 0:00:05]} 56. g4+ {[%emt 0:00:18]} hxg4+ {[%emt 0:00:06]} 57. Kg3 {[%emt 0:00:01]} a4 {[%emt 0:00:37]} 58. bxa4 {[%emt 0:00:23]} Ra5 {[%emt 0:00:09]} 59. Rf2+ {[%emt 0:00:13]} Ke6 {[%emt 0:00:13]} 60. Kxg4 {[%emt 0:00:59]} Rxa4 {[%emt 0:00:17]} 61. h5 {[%emt 0:02:13]} Ra1 {[%emt 0:00:41]} 62. Rh2 {[%emt 0:01:12]} Rg1+ {[%emt 0:00:28]} 63. Kf3 {[%emt 0:00:15]} Rf1+ {[%emt 0:00:11]} 64. Ke2 {[%emt 0:00:20]} Rf7 {[%emt 0:00:28]} 65. h6 {[%emt 0:00:51]} Rh7 {[%emt 0:00:06]} 66. Rh5 {[%emt 0:01:17]} Kf6 {[%emt 0:00:53]} 67. Kf3 {[%emt 0:00:39]} 1-0

[Event "European-ch Seniors 2018"]
[Site "Drammen"]
[Date "2018.08.10"]
[Round "7"]
[White "Edvardsen, Ragnar"]
[Black "Syvertsen, Rolf E"]
[Result "1/2-1/2"]
[ECO "B32"]
[WhiteElo "1969"]
[BlackElo "1884"]
[Annotator "NA"]
[PlyCount "110"]
[EventDate "2018.08.04"]
[EventType "swiss"]
[EventCountry "NOR"]
[SourceTitle "playchess.com"]
[Source "ChessBase"]
[SourceQuality "1"]
[TimeControl "40/5400+30:1800+30"]

1. e4 {[%emt 0:00:00]} c5 {[%emt 0:00:11]} 2. Nf3 {[%emt 0:00:41]} Nc6 {[%emt 0:00:10]} 3. d4 {[%emt 0:00:35]} cxd4 {[%emt 0:00:08]} 4. Nxd4 {[%emt 0:00:11]} e5 {[%emt 0:00:14]} 5. Nb3 {[%emt 0:03:51]} Nf6 {[%emt 0:02:16]} 6. Nc3 {[%emt 0:00:35]} Bb4 {[%emt 0:01:43]} 7. Bg5 {[%emt 0:05:38]} h6 {[%emt 0:12:18]} 8. Bxf6 {[%emt 0:04:41]} Bxc3+ {[%emt 0:00:44]} 9. bxc3 {[%emt 0:00:35]} Qxf6 {[%emt 0:00:05]} 10. Be2 {[%emt 0:02:26]} O-O {[%emt 0:03:45]} 11. O-O {[%emt 0:03:58]} Rd8 {[%emt 0:02:52]} 12. Qd2 {[%emt 0:04:16]} g5 {[%emt 0:06:45]} 13. Rad1 {[%emt 0:09:47]} d6 {[%emt 0:01:17]} 14. Bc4 {[%emt 0:01:56]} Be6 {[%emt 0:08:56]} 15. Bd5 {[%emt 0:03:27]} Bxd5 {[%emt 0:05:45]} 16. Qxd5 {[%emt 0:01:05]} Rac8 {[%emt 0:02:32]} 17. Rd3 {[%emt 0:01:33]} Kf8 {[%emt 0:01:07]} 18. Rf3 {[%emt 0:08:41]} Qg6 {[%emt 0:01:10]} 19. Rd1 {[%emt 0:01:05]} Ke7 {[%emt 0:00:29]} 20. Nd2 {[%emt 0:04:26]} Qe6 {[%emt 0:03:03]} 21. Qb5 {[%emt 0:01:28]} Rd7 {[%emt 0:01:42]} 22. Nf1 {[%emt 0:07:20]} Kf8 {[%emt 0:12:53]} 23. a4 {[%emt 0:10:41]} Ne7 {[%emt 0:01:20]} 24. Rfd3 {[%emt 0:01:10]} Rc5 {[%emt 0:01:48]} 25. Qb4 {[%emt 0:02:47]} Ng6 {[%emt 0:12:26]} 26. Rxd6 {[%emt 0:06:40]} Rxd6 {[%emt 0:09:32]} 27. Qxc5 {[%emt 0:00:13]} Ke7 {[%emt 0:00:21]} 28. Ne3 {[%emt 0:01:10]} Kd7 {[%emt 0:00:52]} 29. Rxd6+ {[%emt 0:01:35]} Qxd6 {[%emt 0:00:13]} 30. Qxd6+ {[%emt 0:00:28]} Kxd6 {[%emt 0:00:01]} 31. Nf5+ {[%emt 0:00:37]} Kc5 {[%emt 0:01:18]} 32. Nxh6 {[%emt 0:00:39]} a5 {[%emt 0:01:17]} 33. Kf1 {[%emt 0:06:10]} b5 {[%emt 0:00:19]} 34. Ke1 {[%emt 0:00:13]} bxa4 {[%emt 0:01:00]} 35. Kd1 {[%emt 0:00:05]} a3 {[%emt 0:01:57]} 36. Kc1 {[%emt 0:00:07]} Kc4 {[%emt 0:01:24]} 37. Nxf7 {[%emt 0:00:41]} Kxc3 {[%emt 0:00:18]} 38. Kb1 {[%emt 0:00:15]} g4 {[%emt 0:01:20]} 39. Nh6 {[%emt 0:00:26]} a2+ {[%emt 0:00:33]} 40. Kxa2 {[%emt 0:00:00]} Kxc2 {[%emt 0:00:00]} 41. Nxg4 {[%emt 0:00:45]} Kd3 {[%emt 0:01:48]} 42. f3 {[%emt 0:01:21]} Ke2 {[%emt 0:01:05]} 43. Kb3 {[%emt 0:05:11]} Kf1 {[%emt 0:00:24]} 44. Nxe5 {[%emt 0:01:47]} Nxe5 {[%emt 0:00:21]} 45. f4 {[%emt 0:00:09]} Nd3 {[%emt 0:06:13]} 46. g4 {[%emt 0:03:25]} Nxf4 {[%emt 0:03:20]} 47. h4 {[%emt 0:00:26]} Kf2 {[%emt 0:00:35]} 48. g5 {[%emt 0:11:50]} Kf3 {[%emt 0:01:21]} 49. g6 {[%emt 0:04:17]} Nxg6 {[%emt 0:01:01]} 50. h5 {[%emt 0:00:23]} Ne5 {[%emt 0:00:11]} 51. h6 {[%emt 0:01:04]} Kxe4 {[%emt 0:00:40]} 52. Ka4 {[%emt 0:00:19]} Kf5 {[%emt 0:00:33]} 53. h7 {[%emt 0:00:17]} Nf7 {[%emt 0:00:15]} 54. Kxa5 {[%emt 0:00:14]} Kg6 {[%emt 0:00:16]} 55. h8=Q {[%emt 0:00:18]} Nxh8 {[%emt 0:00:18]} 1/2-1/2

[Event "European-ch Seniors 2018"]
[Site "Drammen"]
[Date "2018.08.11"]
[Round "8"]
[White "Bogdanov, Valentin"]
[Black "Stebbings, Anthony J"]
[Result "1-0"]
[ECO "E32"]
[WhiteElo "2356"]
[BlackElo "2265"]
[Annotator "NA"]
[PlyCount "79"]
[EventDate "2018.08.04"]
[EventType "swiss"]
[EventCountry "NOR"]
[SourceTitle "playchess.com"]
[Source "ChessBase"]
[SourceQuality "1"]
[TimeControl "40/5400+30:1800+30"]

1. d4 {[%emt 0:00:00]} Nf6 {[%emt 0:00:00]} 2. c4 {[%emt 0:00:00]} e6 {[%emt 0:00:00]} 3. Nc3 {[%emt 0:00:00]} Bb4 {[%emt 0:00:00]} 4. Qc2 {[%emt 0:00:49]} b6 {[%emt 0:00:00]} 5. e4 {[%emt 0:00:28]} c5 {[%emt 0:00:09]} 6. e5 {[%emt 0:00:26]} cxd4 {[%emt 0:02:05]} 7. a3 {[%emt 0:00:18]} Bxc3+ {[%emt 0:02:07]} 8. bxc3 {[%emt 0:00:08]} Ng8 {[%emt 0:00:08]} 9. Qe4 {[%emt 0:01:19]} Nc6 {[%emt 0:00:24]} 10. cxd4 {[%emt 0:00:08]} f5 {[%emt 0:13:46]} 11. Qe3 {[%emt 0:01:36]} Ba6 {[%emt 0:03:27]} 12. Bd2 {[%emt 0:03:14]} d5 {[%emt 0:06:56]} 13. exd6 {[%emt 0:01:08]} Qxd6 {[%emt 0:00:06]} 14. Nf3 {[%emt 0:02:27]} Qe7 {[%emt 0:06:43]} 15. Bd3 {[%emt 0:06:56]} Nf6 {[%emt 0:00:30]} 16. O-O {[%emt 0:02:05]} O-O {[%emt 0:00:35]} 17. Rfe1 {[%emt 0:06:32]} Rfe8 {[%emt 0:17:41]} 18. Ne5 {[%emt 0:22:31]} Nxe5 {[%emt 0:02:25]} 19. Qxe5 {[%emt 0:00:11]} Rac8 {[%emt 0:06:34]} 20. Bxf5 {[%emt 0:07:26]} Bxc4 {[%emt 0:00:29]} 21. Bh3 {[%emt 0:00:58]} Qc7 {[%emt 0:16:08]} 22. Qg5 {[%emt 0:01:30]} Qf7 {[%emt 0:04:20]} 23. Bf4 {[%emt 0:03:05]} Qg6 {[%emt 0:01:36]} 24. Qe5 {[%emt 0:03:15]} Qh5 {[%emt 0:03:33]} 25. Bg5 {[%emt 0:01:54]} Nd7 {[%emt 0:00:50]} 26. Qg3 {[%emt 0:01:00]} Qg6 {[%emt 0:01:44]} 27. Qh4 {[%emt 0:02:54]} Bd5 {[%emt 0:00:31]} 28. Re3 {[%emt 0:02:31]} Qf7 {[%emt 0:04:13]} 29. Rae1 {[%emt 0:02:57]} Nf8 {[%emt 0:00:41]} 30. Bg4 {[%emt 0:02:20]} Rc4 {[%emt 0:02:10]} 31. Be2 {[%emt 0:03:44]} Rc7 {[%emt 0:01:25]} 32. Qg4 {[%emt 0:01:40]} Rec8 {[%emt 0:00:55]} 33. Rg3 {[%emt 0:02:27]} Rc3 {[%emt 0:00:52]} 34. Bd3 {[%emt 0:00:44]} Kh8 {[%emt 0:00:42]} 35. Bf4 {[%emt 0:03:42]} Rd8 {[%emt 0:01:40]} 36. Be5 {[%emt 0:00:46]} Rd7 {[%emt 0:00:09]} 37. Qh4 {[%emt 0:00:39]} Qg8 {[%emt 0:00:35]} 38. Bxh7 {[%emt 0:00:27]} Qxh7 {[%emt 0:01:17]} 39. Qxh7+ {[%emt 0:00:09]} Kxh7 {[%emt 0:00:11]} 40. Rxc3 {[%emt 0:00:00]} 1-0

[Event "European-ch Seniors 2018"]
[Site "Drammen"]
[Date "2018.08.11"]
[Round "8"]
[White "Elseth, Roar"]
[Black "Ali, Karim"]
[Result "1-0"]
[ECO "A11"]
[WhiteElo "2311"]
[BlackElo "1819"]
[Annotator "NA"]
[PlyCount "41"]
[EventDate "2018.08.04"]
[EventType "swiss"]
[EventCountry "NOR"]
[SourceTitle "playchess.com"]
[Source "ChessBase"]
[SourceQuality "1"]
[TimeControl "40/5400+30:1800+30"]

1. e4 {[%emt 0:00:04]} a6 {[%emt 0:02:01]} 2. d4 {[%emt 0:01:12]} b5 {[%emt 0:00:47]} 3. Bd3 {[%emt 0:14:38]} Bb7 {[%emt 0:01:20]} 4. Nf3 {[%emt 0:01:18]} e6 {[%emt 0:00:26]} 5. a4 {[%emt 0:02:18]} c5 {[%emt 0:04:41]} 6. dxc5 {[%emt 0:09:13]} Bxc5 {[%emt 0:01:51]} 7. O-O {[%emt 0:00:32]} Ne7 {[%emt 0:03:56]} 8. axb5 {[%emt 0:02:41]} axb5 {[%emt 0:00:24]} 9. Rxa8 {[%emt 0:00:09]} Bxa8 {[%emt 0:00:08]} 10. Qe2 {[%emt 0:01:41]} b4 {[%emt 0:02:55]} 11. Ng5 {[%emt 0:04:11]} Ng6 {[%emt 0:17:09]} 12. Qh5 {[%emt 0:09:35]} Qa5 {[%emt 0:09:11]} 13. Kh1 {[%emt 0:01:58]} Be7 {[%emt 0:03:01]} 14. Nxe6 {[%emt 0:00:15]} Qa7 {[%emt 0:12:41]} 15. Nxg7+ {[%emt 0:01:22]} Kd8 {[%emt 0:00:39]} 16. Be3 {[%emt 0:01:49]} Qc7 {[%emt 0:02:08]} 17. Nd2 {[%emt 0:06:59]} Rg8 {[%emt 0:01:16]} 18. Nc4 {[%emt 0:00:56]} Kc8 {[%emt 0:01:04]} 19. Nb6+ {[%emt 0:00:32]} Kb7 {[%emt 0:00:51]} 20. Qa5 {[%emt 0:00:10]} Kc6 {[%emt 0:08:33]} 21. Qd5# {[%emt 0:00:50]} 1-0

[Event "European-ch Seniors 2018"]
[Site "Drammen"]
[Date "2018.08.11"]
[Round "8"]
[White "Werner, Clemens"]
[Black "Barle, Janez"]
[Result "0-1"]
[ECO "B01"]
[WhiteElo "2258"]
[BlackElo "2249"]
[Annotator "NA"]
[PlyCount "100"]
[EventDate "2018.08.04"]
[EventType "swiss"]
[EventCountry "NOR"]
[SourceTitle "playchess.com"]
[Source "ChessBase"]
[SourceQuality "1"]
[TimeControl "40/5400+30:1800+30"]

1. e4 {[%emt 0:00:00]} d5 {[%emt 0:00:23]} 2. exd5 {[%emt 0:00:00]} Nf6 {[%emt 0:00:16]} 3. Nf3 {[%emt 0:00:17]} Nxd5 {[%emt 0:07:48]} 4. d4 {[%emt 0:01:02]} Bg4 {[%emt 0:01:29]} 5. Be2 {[%emt 0:01:03]} e6 {[%emt 0:02:15]} 6. h3 {[%emt 0:00:39]} Bh5 {[%emt 0:00:59]} 7. O-O {[%emt 0:00:33]} Nd7 {[%emt 0:05:18]} 8. c4 {[%emt 0:16:09]} N5f6 {[%emt 0:06:01]} 9. Nc3 {[%emt 0:03:14]} Be7 {[%emt 0:15:45]} 10. Bf4 {[%emt 0:01:20]} O-O {[%emt 0:05:19]} 11. Ne5 {[%emt 0:00:50]} Bxe2 {[%emt 0:00:24]} 12. Qxe2 {[%emt 0:00:16]} c6 {[%emt 0:01:46]} 13. Rfd1 {[%emt 0:04:27]} Re8 {[%emt 0:00:29]} 14. Qf3 {[%emt 0:07:37]} Qb6 {[%emt 0:08:48]} 15. g4 {[%emt 0:07:12]} Rad8 {[%emt 0:01:58]} 16. b3 {[%emt 0:12:33]} Nxe5 {[%emt 0:04:29]} 17. dxe5 {[%emt 0:00:23]} Nd7 {[%emt 0:00:51]} 18. Ne4 {[%emt 0:00:40]} Qa5 {[%emt 0:01:03]} 19. Qg3 {[%emt 0:02:52]} Nc5 {[%emt 0:02:14]} 20. Nd6 {[%emt 0:07:06]} Bxd6 {[%emt 0:00:19]} 21. exd6 Nd7 {[%emt 0:05:32]} 22. Bd2 {[%emt 0:06:19]} Qa3 {[%emt 0:00:39]} 23. Bc1 {[%emt 0:04:27]} Qa6 {[%emt 0:00:54]} 24. Bb2 {[%emt 0:00:40]} e5 {[%emt 0:02:16]} 25. Qc3 {[%emt 0:04:36]} f6 {[%emt 0:00:36]} 26. c5 {[%emt 0:00:12]} Qb5 {[%emt 0:00:52]} 27. b4 {[%emt 0:00:38]} a5 {[%emt 0:00:26]} 28. a3 {[%emt 0:01:14]} Kh8 {[%emt 0:01:21]} 29. Qd3 {[%emt 0:03:34]} Qxd3 {[%emt 0:05:09]} 30. Rxd3 {[%emt 0:00:05]} axb4 {[%emt 0:00:06]} 31. axb4 {[%emt 0:00:07]} Ra8 {[%emt 0:00:19]} 32. Rda3 {[%emt 0:00:20]} Rxa3 {[%emt 0:00:21]} 33. Rxa3 {[%emt 0:00:03]} Kg8 {[%emt 0:00:24]} 34. Ra7 {[%emt 0:02:17]} Rb8 {[%emt 0:01:00]} 35. Ba3 {[%emt 0:00:17]} Kf7 {[%emt 0:06:02]} 36. Kf1 {[%emt 0:06:27]} Ke6 {[%emt 0:00:41]} 37. Ke2 {[%emt 0:00:07]} Kd5 {[%emt 0:07:55]} 38. Kd3 {[%emt 0:00:05]} Nf8 {[%emt 0:01:30]} 39. Bc1 {[%emt 0:03:07]} Ne6 {[%emt 0:01:42]} 40. Be3 {[%emt 0:00:00]} g6 {[%emt 0:00:00]} 41. f3 {[%emt 0:02:42]} f5 {[%emt 0:00:43]} 42. gxf5 {[%emt 0:03:32]} gxf5 {[%emt 0:00:15]} 43. Kc3 {[%emt 0:01:58]} f4 {[%emt 0:06:14]} 44. Bf2 {[%emt 0:00:57]} Ng5 {[%emt 0:09:13]} 45. d7 {[%emt 0:04:47]} Nxf3 {[%emt 0:03:50]} 46. Rxb7 {[%emt 0:01:48]} Rd8 {[%emt 0:01:15]} 47. Rc7 {[%emt 0:16:15]} e4 {[%emt 0:02:10]} 48. b5 {[%emt 0:00:12]} e3 {[%emt 0:00:52]} 49. Bxe3 {[%emt 0:02:03]} fxe3 {[%emt 0:00:11]} 50. Kd3 {[%emt 0:00:17]} e2 {[%emt 0:00:22]} 0-1

[Event "European-ch Seniors 2018"]
[Site "Drammen"]
[Date "2018.08.11"]
[Round "8"]
[White "Ackermann, Hans Werner"]
[Black "Renman, Nils-Gustaf"]
[Result "1/2-1/2"]
[ECO "E14"]
[WhiteElo "2246"]
[BlackElo "2348"]
[Annotator "NA"]
[PlyCount "51"]
[EventDate "2018.08.04"]
[EventType "swiss"]
[EventCountry "NOR"]
[SourceTitle "playchess.com"]
[Source "ChessBase"]
[SourceQuality "1"]
[TimeControl "40/5400+30:1800+30"]

1. Nf3 {[%emt 0:00:00]} e6 {[%emt 0:01:13]} 2. b3 {[%emt 0:02:12]} d5 {[%emt 0:01:14]} 3. Bb2 {[%emt 0:00:15]} Nf6 {[%emt 0:00:06]} 4. e3 {[%emt 0:00:19]} Be7 {[%emt 0:00:18]} 5. d4 {[%emt 0:00:35]} O-O {[%emt 0:01:06]} 6. Bd3 {[%emt 0:00:04]} c5 {[%emt 0:04:09]} 7. O-O {[%emt 0:01:26]} Nbd7 {[%emt 0:05:48]} 8. c4 {[%emt 0:08:54]} b6 {[%emt 0:04:19]} 9. Nc3 {[%emt 0:08:09]} cxd4 {[%emt 0:03:22]} 10. Nxd4 {[%emt 0:02:48]} Bb7 {[%emt 0:08:29]} 11. cxd5 {[%emt 0:02:49]} Nxd5 {[%emt 0:00:07]} 12. Nxd5 {[%emt 0:01:47]} Bxd5 {[%emt 0:00:13]} 13. Rc1 {[%emt 0:00:09]} Rc8 {[%emt 0:05:13]} 14. Qe2 {[%emt 0:02:39]} Rxc1 {[%emt 0:08:40]} 15. Rxc1 {[%emt 0:01:24]} Nc5 {[%emt 0:00:03]} 16. Bb1 {[%emt 0:01:07]} Qa8 {[%emt 0:01:40]} 17. b4 {[%emt 0:09:09]} Ne4 {[%emt 0:04:52]} 18. f3 {[%emt 0:06:28]} Nf6 {[%emt 0:00:52]} 19. a3 {[%emt 0:15:15]} Rc8 {[%emt 0:02:06]} 20. Rxc8+ {[%emt 0:11:39]} Qxc8 {[%emt 0:00:08]} 21. Bd3 {[%emt 0:00:25]} Ne8 {[%emt 0:01:47]} 22. Nb5 {[%emt 0:04:51]} a5 {[%emt 0:04:04]} 23. Qd2 {[%emt 0:03:55]} axb4 {[%emt 0:00:22]} 24. axb4 {[%emt 0:00:26]} Nd6 {[%emt 0:04:32]} 25. e4 {[%emt 0:10:20]} Bb7 {[%emt 0:04:10]} 26. Nxd6 {[%emt 0:01:34]} 1/2-1/2

[Event "European-ch Seniors 2018"]
[Site "Drammen"]
[Date "2018.08.11"]
[Round "8"]
[White "Lederman, Leon S"]
[Black "Gaprindashvili, Nona"]
[Result "1/2-1/2"]
[ECO "B00"]
[WhiteElo "2245"]
[BlackElo "2305"]
[Annotator "NA"]
[PlyCount "37"]
[EventDate "2018.08.04"]
[EventType "swiss"]
[EventCountry "NOR"]
[SourceTitle "playchess.com"]
[Source "ChessBase"]
[SourceQuality "1"]
[TimeControl "40/5400+30:1800+30"]

1. e4 {[%emt 0:00:00]} b6 {[%emt 0:00:00]} 2. d4 {[%emt 0:00:00]} Bb7 {[%emt 0:00:00]} 3. Bd3 {[%emt 0:00:00]} g6 {[%emt 0:00:00]} 4. Qe2 {[%emt 0:00:13]} Bg7 {[%emt 0:00:14]} 5. Nf3 {[%emt 0:00:12]} e6 {[%emt 0:00:26]} 6. O-O {[%emt 0:00:35]} Ne7 {[%emt 0:00:39]} 7. Bg5 {[%emt 0:00:35]} d6 {[%emt 0:03:27]} 8. Nbd2 {[%emt 0:00:28]} O-O {[%emt 0:01:06]} 9. e5 {[%emt 0:01:53]} Nd7 {[%emt 0:09:11]} 10. a4 {[%emt 0:07:21]} dxe5 {[%emt 0:04:47]} 11. dxe5 {[%emt 0:03:05]} Nc5 {[%emt 0:00:40]} 12. Bc4 {[%emt 0:00:51]} h6 {[%emt 0:01:52]} 13. Be3 {[%emt 0:01:20]} Nd7 {[%emt 0:01:04]} 14. a5 {[%emt 0:05:18]} Nf5 {[%emt 0:07:04]} 15. Bf4 {[%emt 0:18:59]} g5 {[%emt 0:03:33]} 16. g4 {[%emt 0:00:51]} Nh4 {[%emt 0:23:54]} 17. Nxh4 {[%emt 0:02:59]} gxf4 {[%emt 0:00:11]} 18. Nhf3 {[%emt 0:00:07]} Qe7 {[%emt 0:03:22]} 19. c3 {[%emt 0:02:47]} 1/2-1/2

[Event "European-ch Seniors 2018"]
[Site "Drammen"]
[Date "2018.08.11"]
[Round "8"]
[White "Karason, Askell O"]
[Black "Hedin, Gunnar"]
[Result "1-0"]
[ECO "E32"]
[WhiteElo "2217"]
[BlackElo "2179"]
[Annotator "NA"]
[PlyCount "81"]
[EventDate "2018.08.04"]
[EventType "swiss"]
[EventCountry "NOR"]
[SourceTitle "playchess.com"]
[Source "ChessBase"]
[SourceQuality "1"]
[TimeControl "40/5400+30:1800+30"]

1. d4 {[%emt 0:00:00]} e6 {[%emt 0:00:00]} 2. c4 {[%emt 0:00:02]} f5 {[%emt 0:00:08]} 3. Nc3 {[%emt 0:00:13]} Nf6 {[%emt 0:00:29]} 4. e3 {[%emt 0:00:26]} Bb4 {[%emt 0:00:31]} 5. Qc2 {[%emt 0:01:27]} b6 {[%emt 0:04:27]} 6. Nf3 {[%emt 0:08:48]} Bb7 {[%emt 0:01:55]} 7. Be2 {[%emt 0:03:42]} Ne4 {[%emt 0:04:54]} 8. O-O {[%emt 0:02:04]} Bxc3 {[%emt 0:00:48]} 9. bxc3 {[%emt 0:00:05]} O-O {[%emt 0:01:39]} 10. Ne1 {[%emt 0:03:16]} Qh4 {[%emt 0:27:30]} 11. f3 {[%emt 0:03:22]} Nf6 {[%emt 0:02:59]} 12. Nd3 {[%emt 0:01:33]} g5 {[%emt 0:04:42]} 13. Qd1 {[%emt 0:26:30]} Nc6 {[%emt 0:11:34]} 14. Qe1 {[%emt 0:01:22]} Qxe1 {[%emt 0:02:14]} 15. Rxe1 {[%emt 0:00:02]} Na5 {[%emt 0:02:22]} 16. c5 {[%emt 0:00:20]} Ba6 {[%emt 0:00:57]} 17. Bf1 {[%emt 0:04:48]} d6 {[%emt 0:04:19]} 18. c4 {[%emt 0:11:12]} bxc5 {[%emt 0:07:03]} 19. dxc5 {[%emt 0:00:48]} e5 {[%emt 0:00:13]} 20. cxd6 {[%emt 0:00:56]} cxd6 {[%emt 0:00:04]} 21. Bd2 {[%emt 0:07:50]} Nxc4 {[%emt 0:09:51]} 22. Nb4 {[%emt 0:01:26]} Nxd2 {[%emt 0:00:34]} 23. Bxa6 {[%emt 0:00:05]} Rab8 {[%emt 0:00:14]} 24. a3 {[%emt 0:00:37]} Kg7 {[%emt 0:01:50]} 25. Rad1 {[%emt 0:00:38]} Nb3 {[%emt 0:00:36]} 26. Rxd6 {[%emt 0:00:04]} Nc5 {[%emt 0:01:02]} 27. Rc1 {[%emt 0:00:06]} Nxa6 {[%emt 0:00:45]} 28. Rxa6 {[%emt 0:00:06]} Rb7 {[%emt 0:02:06]} 29. Rc5 {[%emt 0:01:36]} Nd7 {[%emt 0:02:44]} 30. Rca5 {[%emt 0:00:35]} Ra8 {[%emt 0:01:18]} 31. Nd3 {[%emt 0:02:19]} h6 {[%emt 0:02:58]} 32. Nxe5 {[%emt 0:01:46]} Rb1+ {[%emt 0:00:22]} 33. Kf2 {[%emt 0:00:03]} Rb2+ {[%emt 0:00:05]} 34. Kg3 {[%emt 0:01:01]} Nxe5 {[%emt 0:00:22]} 35. Rxe5 {[%emt 0:00:07]} f4+ {[%emt 0:00:23]} 36. Kh3 {[%emt 0:02:43]} fxe3 {[%emt 0:00:29]} 37. Rxe3 {[%emt 0:00:08]} Rb7 {[%emt 0:00:46]} 38. Ree6 {[%emt 0:00:24]} Rh8 {[%emt 0:00:17]} 39. Rg6+ {[%emt 0:00:05]} Kf7 {[%emt 0:00:05]} 40. Rxh6 {[%emt 0:00:00]} Rxh6+ {[%emt 0:00:00]} 41. Rxh6 {[%emt 0:00:13]} 1-0

[Event "European-ch Seniors 2018"]
[Site "Drammen"]
[Date "2018.08.11"]
[Round "8"]
[White "Biro, Sandor"]
[Black "Edvardsen, Ragnar"]
[Result "1-0"]
[ECO "C21"]
[WhiteElo "2193"]
[BlackElo "1969"]
[Annotator "NA"]
[PlyCount "61"]
[EventDate "2018.08.04"]
[EventType "swiss"]
[EventCountry "NOR"]
[SourceTitle "playchess.com"]
[Source "ChessBase"]
[SourceQuality "1"]
[TimeControl "40/5400+30:1800+30"]

1. e4 {[%emt 0:00:00]} e5 {[%emt 0:00:44]} 2. d4 {[%emt 0:00:05]} exd4 {[%emt 0:02:33]} 3. c3 {[%emt 0:00:07]} dxc3 {[%emt 0:00:26]} 4. Bc4 {[%emt 0:00:07]} cxb2 {[%emt 0:00:33]} 5. Bxb2 {[%emt 0:00:06]} Bb4+ {[%emt 0:06:49]} 6. Nc3 {[%emt 0:00:12]} Nf6 {[%emt 0:00:40]} 7. Nge2 {[%emt 0:00:12]} O-O {[%emt 0:01:44]} 8. O-O {[%emt 0:05:48]} Nc6 {[%emt 0:04:03]} 9. Nd5 {[%emt 0:01:41]} Be7 {[%emt 0:05:11]} 10. Nef4 {[%emt 0:19:19]} d6 {[%emt 0:06:36]} 11. Re1 {[%emt 0:06:51]} Ne5 {[%emt 0:03:43]} 12. Bb3 {[%emt 0:02:00]} Bg4 {[%emt 0:03:55]} 13. f3 {[%emt 0:01:29]} Bd7 {[%emt 0:01:28]} 14. Qd2 {[%emt 0:18:57]} c6 {[%emt 0:06:32]} 15. Nxf6+ {[%emt 0:07:28]} Bxf6 {[%emt 0:01:10]} 16. Nh5 {[%emt 0:00:06]} Be6 {[%emt 0:08:20]} 17. Nxf6+ {[%emt 0:03:02]} gxf6 {[%emt 0:00:40]} 18. f4 {[%emt 0:02:59]} Nd7 {[%emt 0:21:03]} 19. Bc2 {[%emt 0:22:06]} Qb6+ {[%emt 0:05:27]} 20. Bd4 {[%emt 0:00:08]} c5 {[%emt 0:00:39]} 21. Bc3 {[%emt 0:01:03]} Qc6 {[%emt 0:05:40]} 22. Re3 {[%emt 0:01:09]} Rfd8 {[%emt 0:06:17]} 23. Qe2 {[%emt 0:01:07]} b5 {[%emt 0:00:56]} 24. Qh5 {[%emt 0:00:42]} Kf8 {[%emt 0:00:33]} 25. Rd1 {[%emt 0:01:15]} Bxa2 {[%emt 0:01:28]} 26. Qh6+ {[%emt 0:00:36]} Ke7 {[%emt 0:00:15]} 27. e5 {[%emt 0:00:15]} dxe5 {[%emt 0:02:39]} 28. fxe5 {[%emt 0:00:19]} Rg8 {[%emt 0:01:45]} 29. Be4 {[%emt 0:01:06]} Qc8 {[%emt 0:01:43]} 30. exf6+ {[%emt 0:00:16]} Kd8 {[%emt 0:01:28]} 31. Ba5+ {[%emt 0:00:30]} 1-0